lending/lending_fUSD_20240401
["ID","MTS","AMOUNT","RATE_DAILY","PERIOD"]
[321237146,1712007054470,-500.0,0.00061717,120]
[321237147,1712007054480,-500.0,0.00061717,120]
[321237148,1712007054489,-757.56,0.00061717,120]
[321237149,1712007054499,-500.0,0.00061717,120]
[321237150,1712007054508,-611.37,0.00061717,120]
[321237151,1712007054518,-609.0,0.00061717,120]
[321237152,1712007054527,-500.0,0.00061717,120]
[321237153,1712007054536,-511.68,0.00061717,120]
[321237154,1712007054546,-500.0,0.00061717,120]
[321237155,1712007054555,-500.0,0.00061717,120]
[321237156,1712007054565,-1241.58,0.00061717,120]
[321237157,1712007054575,-500.0,0.00061717,120]
[321237158,1712007054584,-152.24522427,0.00061721,120]
[321237159,1712007054594,-1720.36910309,0.000618,120]
[321237160,1712007054603,-579.5,0.000618,30]
[321237161,1712007054613,-155.55297408,0.00061823,120]
[321237162,1712007054622,-384.76,0.00061828,120]
[321237163,1712007054631,-216.41046048,0.00061891,2]
[321237164,1712007054641,-988.22418602,0.00061891,120]
[321237165,1712007054650,-1658.71601663,0.00061899,2]
[321237166,1712007054659,-4139.49768943,0.00061913,41]
[321237167,1712007054668,-151.0,0.00061973,120]
[321237168,1712007054678,-200.0,0.00061987,2]
[321237169,1712007054687,-200.0,0.00061987,3]
[321237170,1712007054697,-680.46,0.0006199,120]
[321237171,1712007054706,-599.81,0.0006199,120]
[321237172,1712007054715,-519.19,0.0006199,120]
[321237173,1712007054725,-601.57,0.0006199,120]
[321237174,1712007054735,-513.33,0.0006199,120]
[321237175,1712007054744,-596.47,0.0006199,120]
[321237176,1712007054755,-500.0,0.0006199,120]
[321237177,1712007054764,-3391.36,0.0006199,120]
[321237178,1712007054774,-1369.95,0.0006199,120]
[321237179,1712007054784,-500.0,0.0006199,120]
[321237180,1712007054794,-687.98,0.0006199,120]
[321237181,1712007054803,-1071.64,0.0006199,120]
[321237182,1712007054812,-500.0,0.0006199,120]
[321237183,1712007054822,-1065.74,0.0006199,120]
[321237184,1712007054833,-500.0,0.0006199,120]
[321237185,1712007054842,-500.0,0.0006199,120]
[321237186,1712007054852,-1349.08,0.0006199,120]
[321237187,1712007054861,-500.0,0.0006199,120]
[321237188,1712007054871,-748.08,0.0006199,120]
[321237189,1712007054975,-711.74,0.0006199,120]
[321237190,1712007054985,-500.0,0.0006199,120]
[321237191,1712007054996,-500.0,0.0006199,120]
[321237192,1712007055006,-500.0,0.0006199,120]
[321237193,1712007055016,-500.0,0.0006199,120]
[321237194,1712007055025,-500.0,0.0006199,120]
[321237195,1712007055034,-517.59,0.0006199,120]
[321237196,1712007055044,-500.0,0.0006199,120]
[321237197,1712007055054,-179.62,0.0006199,120]
[321237198,1712007055063,-500.0,0.00061991,120]
[321237199,1712007055073,-500.0,0.00061991,120]
[321237200,1712007055082,-500.0,0.00061991,120]
[321237201,1712007055095,-500.0,0.00061991,120]
[321237202,1712007055104,-3227.39,0.00061991,120]
[321237203,1712007055114,-1339.37,0.00061991,120]
[321237204,1712007055123,-500.0,0.00061991,120]
[321237205,1712007055134,-429.62,0.00061991,120]
[321237206,1712007055144,-500.0,0.00061991,120]
[321237207,1712007055153,-812.22,0.00061991,120]
[321237208,1712007055165,-5317.05,0.00061991,120]
[321237209,1712007055174,-500.0,0.00061991,120]
[321237210,1712007055184,-515.11,0.00061991,120]
[321237211,1712007055193,-500.0,0.00061991,120]
[321237212,1712007055202,-1632.83,0.00061991,120]
[321237213,1712007055211,-667.28,0.00061991,120]
[321237214,1712007055222,-500.0,0.00061991,120]
[321237215,1712007055231,-593.19,0.00061991,120]
[321237216,1712007055241,-4315.02,0.00061991,120]
[321237217,1712007055251,-500.0,0.00061991,120]
[321237218,1712007055261,-596.14,0.00061991,120]
[321237219,1712007055271,-2739.33,0.00061991,120]
[321237220,1712007055280,-500.0,0.00061991,120]
[321237221,1712007055290,-500.0,0.00061991,120]
[321237222,1712007055299,-7145.39,0.00061991,120]
[321237223,1712007055309,-500.0,0.00061991,120]
[321237224,1712007055319,-500.0,0.00061991,120]
[321237225,1712007055328,-896.45,0.00061991,120]
[321237226,1712007055338,-369.28,0.00061991,120]
[321237227,1712007055348,-500.0,0.00061991,120]
[321237228,1712007055357,-500.0,0.00061991,120]
[321237229,1712007055367,-526.89,0.00061991,120]
[321237230,1712007055376,-780.72,0.00061991,120]
[321237231,1712007055385,-500.0,0.00061991,120]
[321237232,1712007055395,-500.0,0.00061991,120]
[321237233,1712007055405,-1039.33,0.00061991,21]
[321237234,1712007055414,-648.52,0.00061991,120]
[321237235,1712007055424,-500.0,0.00061991,120]
[321237236,1712007055433,-820.79,0.00061991,120]
[321237237,1712007055443,-216.6,0.00061991,120]
[321237238,1712007055452,-8275.33,0.00061991,120]
[321237239,1712007055462,-440.24,0.00061991,120]
[321237240,1712007055471,-635.2,0.00061991,120]
[321237241,1712007055481,-370.82,0.00061991,120]
[321237242,1712007055490,-505.47,0.00061991,120]
[321237243,1712007055500,-678.99,0.00061991,120]
[321237244,1712007055509,-500.0,0.00061991,120]
[321237245,1712007055519,-500.0,0.00061991,120]
[321237246,1712007055529,-1439.68,0.00061991,120]
[321237247,1712007055538,-500.0,0.00061991,120]
[321237248,1712007055547,-500.0,0.00061991,120]
[321237249,1712007055556,-500.0,0.00061991,120]
[321237250,1712007055565,-770.39,0.00061991,120]
[321237251,1712007055575,-840.85,0.00061991,120]
[321237252,1712007055584,-595.69,0.00061991,120]
[321237253,1712007055593,-643.95,0.00061991,120]
[321237254,1712007055603,-1999.43,0.00061991,120]
[321237255,1712007055613,-500.0,0.00061991,120]
[321237256,1712007055622,-747.29,0.00061991,120]
[321237257,1712007055640,-500.0,0.00061991,120]
[321237258,1712007055661,-500.0,0.00061991,120]
[321237259,1712007055684,-203.36,0.00061991,120]
[321237260,1712007055706,-619.07,0.00061991,120]
[321237261,1712007055732,-582.76,0.00061991,120]
[321237262,1712007055767,-500.0,0.00061991,120]
[321237263,1712007055815,-500.0,0.00061991,120]
[321237264,1712007055843,-2980.96,0.00061991,120]
[321237265,1712007055853,-566.6,0.00061991,120]
[321237266,1712007055862,-618.02,0.00061991,120]
[321237267,1712007055872,-717.37,0.00061991,120]
[321237268,1712007055881,-500.0,0.00061991,120]
[321237269,1712007055890,-945.0,0.00061991,120]
[321237270,1712007055899,-1569.99,0.00061991,120]
[321237271,1712007055908,-2089.19,0.00061991,120]
[321237272,1712007055917,-707.64,0.00061991,120]
[321237273,1712007055926,-697.77,0.00061991,120]
[321237274,1712007055935,-554.45,0.00061991,120]
[321237275,1712007055946,-544.08,0.00061991,120]
[321237276,1712007055955,-616.52,0.00061991,120]
[321237277,1712007055965,-872.24,0.00061991,120]
[321237278,1712007055975,-500.0,0.00061991,120]
[321237279,1712007055985,-643.07,0.00061991,120]
[321237280,1712007055994,-757.38,0.00061991,120]
[321237281,1712007056004,-557.14,0.00061991,120]
[321237282,1712007056014,-500.0,0.00061991,120]
[321237283,1712007056023,-615.74,0.00061991,120]
[321237284,1712007056032,-657.88,0.00061991,120]
[321237285,1712007056042,-523.84,0.00061991,120]
[321237286,1712007056051,-500.0,0.00061991,120]
[321237287,1712007056061,-167.44,0.00061991,120]
[321237288,1712007056071,-500.0,0.00061991,120]
[321237289,1712007056081,-616.77887984,0.00061991,120]
[321237290,1712007056250,-703.60112016,0.00061991,120]
[321237291,1712007056260,-1355.63,0.00061991,120]
[321237292,1712007056270,-1254.6,0.00061991,120]
[321237293,1712007056280,-736.97,0.00061991,120]
[321237294,1712007056289,-1981.88,0.00061991,120]
[321237295,1712007056299,-500.0,0.00061991,120]
[321237296,1712007056309,-637.66,0.00061991,120]
[321237297,1712007056318,-757.56,0.00061991,120]
[321237298,1712007056329,-500.0,0.00061991,120]
[321237299,1712007056338,-611.37,0.00061991,120]
[321237300,1712007056348,-609.0,0.00061991,120]
[321237301,1712007056358,-500.0,0.00061991,120]
[321237302,1712007056368,-511.68,0.00061991,120]
[321237303,1712007056378,-500.0,0.00061991,120]
[321237304,1712007056388,-500.0,0.00061991,120]
[321237305,1712007056397,-1241.58,0.00061991,120]
[321237306,1712007056407,-352.28,0.00061991,120]
[321237307,1712007056417,-2822.83242962,0.00061997,2]
[321237308,1712007056426,-988.0,0.00061999,120]
[321237309,1712007056436,-667.41,0.00061999,120]
[321237310,1712007056445,-1207.03,0.00061999,120]
[321237311,1712007056455,-2000.0,0.00061999,120]
[321237312,1712007056465,-2000.0,0.00061999,120]
[321237313,1712007056474,-2000.0,0.00061999,120]
[321237314,1712007056484,-293.80345516,0.00061999,31]
[321237315,1712007056493,-100000.0,0.00062,62]
[321237316,1712007056503,-2100.0,0.00062,60]
[321237317,1712007056513,-6819.9344106,0.00062,120]
[321237318,1712007056523,-206363.5171444,0.00062,120]
[321237319,1712007056627,-2094.22988644,0.00062,120]
[321237320,1712007056640,-4564.95893147,0.00062,120]
[321237321,1712007056945,-500.0,0.00059799,120]
[321237322,1712007056955,-888.42842091,0.00060063,10]
[321237323,1712007056968,-115.65157909,0.00060063,10]
[321237324,1712007056978,-500.0,0.00060072,120]
[321237325,1712007056988,-451.64023537,0.00060346,120]
[321237326,1712007057017,-500.0,0.00059798,120]
[321237327,1712007057026,-48.35976463,0.00060346,120]
[321237328,1712007057037,-500.0,0.0006062,120]
[321237329,1712007057047,-500.0,0.00060894,120]
[321237330,1712007057057,-354.90840683,0.00060995,2]
[321237331,1712007057067,-500.0,0.00061168,120]
[321237332,1712007057077,-500.0,0.00061442,120]
[321237333,1712007057088,-80787.13182855,0.00062,120]
[321237334,1712007057436,-670.8310699,0.00058614,120]
[321237335,1712007057448,-1227.54754726,0.00058614,120]
[321237336,1712007057457,-500.0,0.00059799,120]
[321237337,1712007057467,-500.0,0.00060072,120]
[321237338,1712007057476,-500.0,0.00060073,120]
[321237339,1712007057485,-500.0,0.00060073,120]
[321237340,1712007057494,-500.0,0.00060346,120]
[321237341,1712007057504,-500.0,0.00060347,120]
[321237342,1712007057514,-500.0,0.00060347,120]
[321237343,1712007057523,-500.0,0.0006062,120]
[321237344,1712007057532,-500.0,0.00060621,120]
[321237345,1712007057541,-500.0,0.00060621,120]
[321237346,1712007057551,-3467.9945128,0.00060673,2]
[321237347,1712007057560,-500.0,0.00060894,120]
[321237348,1712007057570,-500.0,0.00060895,120]
[321237349,1712007057580,-500.0,0.00061168,120]
[321237350,1712007057589,-267.19797252,0.00061169,120]
[321237351,1712007057627,-0.01621607,0.00061169,120]
[321237352,1712007057639,-232.78581141,0.00061169,120]
[321237353,1712007057649,-500.0,0.00061442,120]
[321237354,1712007057660,-500.0,0.00061443,120]
[321237355,1712007057669,-244.64,0.00061716,120]
[321237356,1712007057679,-500.0,0.00061716,120]
[321237357,1712007057688,-322.98,0.00061717,120]
[321237358,1712007057698,-500.0,0.0006199,120]
[321237359,1712007057708,-20365.90612604,0.00062,120]
[321237360,1712007057725,-269.9,0.00060895,120]
[321237361,1712007057735,-5647.86994183,0.00062,120]
[321237362,1712007057747,-5830.8492,0.00062,120]
[321237363,1712007057768,-500.0,0.00059798,120]
[321237364,1712007057777,-449.4340784,0.00060072,120]
[321237365,1712007058098,-298.66236919,0.00059157,120]
[321237366,1712007058115,-399.63397372,0.00059157,120]
[321237400,1712008029139,-455.15813271,0.00037399,2]
[321237404,1712008169083,-487.55676842,0.00037294,4]
[321237405,1712008169104,-155.0,0.00037294,4]
[321237406,1712008169126,-2268.56485721,0.00037295,2]
[321237407,1712008173098,-2268.56485721,0.00037296,2]
[321237408,1712008173119,-2268.56485721,0.00037296,2]
[321237409,1712008173141,-161.08222516,0.00037299,2]
[321237410,1712008173163,-155.0,0.00037394,4]
[321237411,1712008173187,-150.0,0.00037398,3]
[321237412,1712008173209,-57019.49270348,0.00037399,2]
[321237413,1712008173233,-33041.49007938,0.00037399,4]
[321237414,1712008173256,-3299.70978139,0.00037399,4]
[321237415,1712008173277,-1378.04,0.00037608,2]
[321237416,1712008173300,-499.99,0.00037608,2]
[321237417,1712008173322,-893.5695,0.00037608,2]
[321237418,1712008173345,-157.44,0.00037808,2]
[321237419,1712008173369,-161.08222514,0.00042768,2]
[321237420,1712008173392,-2157.02,0.00043432,2]
[321237421,1712008173413,-300.0,0.00043432,2]
[321237422,1712008173438,-254.38,0.00045013,2]
[321237423,1712008173461,-173.8,0.00045655,30]
[321237424,1712008173483,-151.0,0.00048,120]
[321237425,1712008173509,-161.08222514,0.00048236,2]
[321237426,1712008173536,-338.6,0.00049893,2]
[321237427,1712008173558,-852.0,0.0005197,15]
[321237428,1712008173579,-589.0,0.0005197,15]
[321237429,1712008173601,-852.0,0.0005198,15]
[321237430,1712008173621,-589.0,0.0005198,15]
[321237431,1712008173642,-852.0,0.0005199,15]
[321237432,1712008173662,-589.0,0.0005199,15]
[321237433,1712008173682,-254.0,0.0005199,2]
[321237434,1712008173703,-1656.29154589,0.00052,2]
[321237459,1712008238116,-14804.67034934,0.00037399,2]
[321237461,1712008238125,-565.63995895,0.00037399,4]
[321237463,1712008238135,-154.63,0.00037808,2]
[321237465,1712008238144,-237.45254911,0.00041598,4]
[321237467,1712008238153,-151.91763195,0.00043752,48]
[321237468,1712008238163,-255.52283609,0.00051957,2]
[321237470,1712008238172,-354.90840683,0.00051957,2]
[321237472,1712008238182,-157.040206,0.00051988,100]
[321237474,1712008238191,-729.69,0.0005199,10]
[321237476,1712008238201,-152.01,0.0005199,120]
[321237478,1712008238210,-3226.09420521,0.00051997,2]
[321237480,1712008238220,-367.71483418,0.00051998,7]
[321237482,1712008238229,-157.040206,0.00051998,99]
[321237484,1712008238238,-302.06768514,0.00051999,4]
[321237486,1712008238248,-156.90238505,0.00051999,4]
[321237487,1712008238257,-20150.47288835,0.00052,36]
[321237488,1712008238268,-132359.81383541,0.00052,36]
[321237489,1712008238278,-54652.58368454,0.00052,2]
[321237490,1712008238321,-14174.576645,0.00052,2]
[321237491,1712008238334,-18562.73672,0.00052,2]
[321237492,1712008238346,-32229.284061,0.00052,2]
[321237493,1712008238359,-40188.70718728,0.00052,2]
[321237494,1712008238371,-55116.52716092,0.00052,2]
[321237495,1712008238532,-1765178.69191328,0.00052,2]
[321237496,1712008238545,-340516.33855994,0.00052,2]
[321237497,1712008238557,-771.26757877,0.00052,2]
[321237498,1712008238570,-336.62283077,0.00052,2]
[321237537,1712008240078,-1882.44193348,0.00052,2]
[321237548,1712008240189,-6704.77841429,0.00052,2]
[321237572,1712008240415,-275.78154187,0.00051998,4]
[321237683,1712008243185,-1020.59972669,0.00051998,4]
[321237684,1712008243195,-5492.86309493,0.00052,2]
[321237685,1712008243207,-4190.59425523,0.00052,2]
[321237686,1712008243218,-3630.69391621,0.00052,2]
[321237687,1712008243243,-30681.4430127,0.00052,2]
[321237688,1712008243356,-1227.33,0.00052,2]
[321237689,1712008243369,-3424.76498354,0.00052,2]
[321237690,1712008243381,-12076.36084308,0.00052,2]
[321237691,1712008243394,-23166.31193745,0.00052,2]
[321237692,1712008243421,-741.89886887,0.00052,2]
[321237693,1712008243480,-13941.2710659,0.00052,2]
[321237694,1712008243493,-856.0,0.00052,2]
[321237695,1712008243505,-1889.4172104,0.00052,2]
[321237696,1712008243517,-4878.80764428,0.00052,2]
[321237697,1712008243594,-82124.5375271,0.00052,2]
[321237699,1712008246263,-2272.79884369,0.00052,2]
[321237727,1712008270512,2588.74837437,0.00025,2]
[321237728,1712008270569,2630.2406,0.00025,2]
[321237729,1712008270627,7027506.80977034,0.00025,2]
[321237730,1712008272291,25631.66874012,0.000264,2]
[321237731,1712008272608,655.66167941,0.000154,2]
[321237732,1712008281998,8936.84520019,9e-05,2]
[321237733,1712008287723,508.21119057,0.00018,2]
[321237734,1712008293482,14220.16985743,0.0001,2]
[321237735,1712008295714,805.62434827,0.00021,2]
[321237736,1712008298141,3697.08093297,0.00011,2]
[321237738,1712008309713,289.12072537,0.0002,2]
[321237739,1712008317000,8290.97207707,6.94e-05,2]
[321237740,1712008317563,941.11489556,0.00024,2]
[321237748,1712008328645,24592.3090448,0.0002,2]
[321237751,1712008342648,15650.10244737,0.0002,2]
[321237753,1712008379633,439.46,0.00015,2]
[321237754,1712008383562,4796.92080983,0.0002,2]
[321237755,1712008383584,2675.3321143,0.0002,2]
[321237756,1712008390738,359.86939231,0.0002,2]
[321237757,1712008394128,-651.0,0.00039989,4]
[321237758,1712008399558,7472.25292413,0.0002,2]
[321237759,1712008406726,359.25564771,0.0002,2]
[321237760,1712008408816,169.88787842,5e-05,2]
[321237763,1712008417561,7472.25292413,0.0002,2]
[321237766,1712008434399,7472.25292413,0.0002,2]
[321237771,1712008439073,1105179.77954095,0.00025,2]
[321237775,1712008444349,3950.0,0.0002,2]
[321237777,1712008449567,7472.25292413,0.0002,2]
[321237784,1712008469603,7472.25292413,0.0002,2]
[321237786,1712008472661,-539.0,0.00037193,2]
[321237840,1712009005170,192.32,0.00027542,2]
[321237846,1712009212174,-161.08222514,0.00037093,2]
[321237847,1712009212195,-170.32585653,0.00037093,2]
[321237848,1712009252080,-620.39362308,0.00037193,2]
[321237853,1712009370150,-2044.96073472,0.00037193,2]
[321237854,1712009370173,-1245.66582109,0.00037193,4]
[321237855,1712009370193,-2251.0277578,0.00037194,2]
[321237958,1712009438313,-155.89,0.00037808,2]
[321237960,1712009438323,-3204.3543578,0.00037998,2]
[321237962,1712009438334,-173.8,0.00038723,30]
[321237963,1712009438343,-150.0,0.00039846,5]
[321237964,1712009438353,-3894.40751968,0.00039847,2]
[321237965,1712009438361,-9000.0,0.0003999,2]
[321237966,1712009438371,-5356.43213017,0.00039998,4]
[321237967,1712009438424,-257.34351708,0.00039998,4]
[321237968,1712009438433,-347.23355923,0.00039999,4]
[321237969,1712009438443,-726.63,0.00039999,15]
[321237970,1712009438452,-658.09,0.00039999,2]
[321237971,1712009438462,-741.31,0.00039999,2]
[321237972,1712009438471,-4489.0,0.0004,2]
[321237973,1712009438480,-35348.98890724,0.0004,30]
[321237974,1712009438489,-499.99,0.0004,2]
[321237975,1712009438498,-507.46262696,0.00043489,7]
[321237976,1712009438508,-464.0,0.00043489,30]
[321237977,1712009438518,-151.91763195,0.00043489,48]
[321237978,1712009438527,-834.13599,0.0004396,21]
[321237979,1712009438536,-185.8577014,0.00045,5]
[321237980,1712009438546,-834.13599,0.0004521,27]
[321237981,1712009438555,-337.84,0.00045491,2]
[321237982,1712009438564,-834.13599,0.0004646,32]
[321237983,1712009438574,-152.21,0.00047167,2]
[321237984,1712009438583,-23900.0,0.00047352,2]
[321237985,1712009438592,-162.07,0.00047369,15]
[321237986,1712009438602,-500.0,0.00047432,2]
[321237987,1712009438612,-769.14,0.00047486,2]
[321237988,1712009438621,-500.0,0.00047503,2]
[321237989,1712009438630,-4326.08,0.00047588,2]
[321237990,1712009438639,-250.0,0.00047632,120]
[321237991,1712009438648,-771.31,0.00047657,10]
[321237992,1712009438657,-498.19,0.00047667,2]
[321237993,1712009438667,-200.0,0.00047673,2]
[321237994,1712009438676,-834.136,0.0004771,38]
[321237995,1712009438685,-337.84,0.00047755,2]
[321237996,1712009438694,-591.84,0.00047755,120]
[321237997,1712009438703,-156.19,0.0004795,2]
[321237998,1712009438713,-151.0,0.00048,120]
[321237999,1712009438722,-250.0,0.00048422,120]
[321238000,1712009438731,-382.3,0.00048554,2]
[321238001,1712009438744,-551.26,0.00048684,10]
[321238002,1712009438754,-195.21,0.00048694,10]
[321238003,1712009438763,-1010.0,0.000487,117]
[321238004,1712009438772,-834.13599,0.0004896,44]
[321238005,1712009438781,-230.86,0.00049257,2]
[321238006,1712009438792,-246.68,0.00049806,2]
[321238007,1712009438801,-246.68,0.00049819,2]
[321238008,1712009438810,-246.68,0.00049832,2]
[321238009,1712009438820,-246.68,0.00049845,2]
[321238010,1712009438830,-246.68,0.00049858,2]
[321238011,1712009438839,-246.68,0.00049871,2]
[321238012,1712009438849,-1000.0,0.00049871,7]
[321238013,1712009438858,-1000.0,0.00049871,7]
[321238014,1712009438867,-1000.0,0.00049871,7]
[321238015,1712009438877,-608.0,0.00049871,7]
[321238016,1712009438886,-246.68,0.00049884,2]
[321238017,1712009438895,-246.68,0.00049897,2]
[321238018,1712009438904,-246.68,0.0004991,2]
[321238019,1712009438913,-246.68,0.00049924,2]
[321238020,1712009438923,-246.68,0.00049937,2]
[321238021,1712009438932,-246.68,0.0004995,2]
[321238022,1712009438941,-246.68,0.00049963,2]
[321238023,1712009438950,-246.68,0.00049976,2]
[321238024,1712009438959,-246.68,0.00049989,2]
[321238025,1712009438969,-151.0,0.0005,120]
[321238026,1712009438978,-1700.0,0.0005,2]
[321238027,1712009438987,-246.68,0.00050002,2]
[321238028,1712009438996,-246.68,0.00050015,2]
[321238029,1712009439005,-337.84,0.00050018,2]
[321238030,1712009439014,-246.68,0.00050028,2]
[321238031,1712009439023,-246.68,0.00050041,2]
[321238032,1712009439032,-246.68,0.00050054,2]
[321238033,1712009439042,-155.89,0.00050205,2]
[321238034,1712009439051,-834.13599,0.0005021,50]
[321238035,1712009439061,-4326.08,0.00050328,2]
[321238036,1712009439070,-68005.03385278,0.0005148,2]
[321238037,1712009439079,-5068.45846475,0.0005156,2]
[321238038,1712009439088,-800.29198,0.00051636,2]
[321238039,1712009439098,-15131.48345907,0.00051998,2]
[321238040,1712009439107,-854.39066674,0.00051998,10]
[321238041,1712009439116,-1416.93375448,0.00051998,4]
[321238042,1712009439127,-1978.25351465,0.00051998,40]
[321238043,1712009439136,-560.19227633,0.00051998,4]
[321238044,1712009439146,-327.91227008,0.00051999,4]
[321238045,1712009439155,-6757.13760361,0.00051999,4]
[321238046,1712009439311,-1000.0,0.00051999,60]
[321238047,1712009439321,-41435.20461046,0.00052,2]
[321238048,1712009439331,-255.79198466,0.00052,120]
[321238049,1712009439341,-200.0,0.00052,15]
[321238050,1712009439352,-800.29199,0.00052263,2]
[321238051,1712009439361,-337.84,0.00052282,2]
[321238052,1712009439370,-5068.45846466,0.0005282,2]
[321238053,1712009439380,-1000.0,0.00052821,120]
[321238054,1712009439390,-4326.08,0.00053068,2]
[321238055,1712009439399,-769.14,0.00053421,120]
[321238056,1712009439409,-1000.0,0.00053643,120]
[321238057,1712009439419,-466.09569932,0.00053815,4]
[321238058,1712009439428,-5068.45846466,0.0005408,2]
[321238059,1712009439438,-162.07,0.00054218,120]
[321238060,1712009439447,-1000.0,0.00054465,120]
[321238061,1712009439457,-4000.0,0.0005448,30]
[321238062,1712009439466,-337.84,0.00054546,2]
[321238063,1712009439476,-211.92122324,0.00054694,14]
[321238064,1712009439485,-354.90840683,0.00054694,2]
[321238065,1712009439495,-500.0,0.00054794,120]
[321238066,1712009439504,-571.02,0.00054794,120]
[321238067,1712009439513,-500.0,0.00054794,120]
[321238068,1712009439522,-500.0,0.00054794,120]
[321238069,1712009439532,-500.0,0.00054794,120]
[321238070,1712009439541,-500.0,0.00054794,120]
[321238071,1712009439551,-500.0,0.00054794,120]
[321238072,1712009439560,-500.0,0.00054794,120]
[321238073,1712009439570,-500.0,0.00054794,120]
[321238074,1712009439579,-500.0,0.00054794,120]
[321238075,1712009439589,-500.0,0.00054794,120]
[321238076,1712009439598,-500.0,0.00054794,120]
[321238077,1712009439607,-500.0,0.00054794,120]
[321238078,1712009439617,-500.0,0.00054794,120]
[321238079,1712009439626,-500.0,0.00054794,120]
[321238080,1712009439635,-500.0,0.00054794,120]
[321238081,1712009439644,-500.0,0.00054794,120]
[321238082,1712009439654,-500.0,0.00054794,120]
[321238083,1712009439663,-500.0,0.00054794,120]
[321238084,1712009439673,-500.0,0.00054794,120]
[321238085,1712009439683,-500.0,0.00054794,120]
[321238086,1712009439692,-500.0,0.00054794,120]
[321238087,1712009439702,-1000.0,0.00054794,30]
[321238088,1712009439712,-500.0,0.00054794,120]
[321238089,1712009439721,-500.0,0.00054794,120]
[321238090,1712009439731,-1018.67463565,0.00054794,120]
[321238091,1712009439742,-500.0,0.00054794,120]
[321238092,1712009439751,-500.0,0.00054794,120]
[321238093,1712009439761,-500.0,0.00054794,120]
[321238094,1712009439771,-500.0,0.00054794,120]
[321238095,1712009439781,-500.0,0.00054794,120]
[321238096,1712009439791,-500.0,0.00054794,120]
[321238097,1712009439800,-500.0,0.00054794,120]
[321238098,1712009439809,-500.0,0.00054794,120]
[321238099,1712009439820,-500.0,0.00054794,120]
[321238100,1712009439831,-500.0,0.00054794,120]
[321238101,1712009439840,-500.0,0.00054794,120]
[321238102,1712009439852,-500.0,0.00054794,120]
[321238103,1712009439861,-500.0,0.00054794,120]
[321238104,1712009439870,-500.0,0.00054794,120]
[321238105,1712009439880,-500.0,0.00054794,120]
[321238106,1712009439889,-500.0,0.00054794,120]
[321238107,1712009439898,-500.0,0.00054794,120]
[321238108,1712009439907,-500.0,0.00054794,120]
[321238109,1712009439917,-500.0,0.00054794,30]
[321238110,1712009439926,-500.0,0.00054794,120]
[321238111,1712009439936,-500.0,0.00054794,120]
[321238112,1712009439945,-500.0,0.00054794,120]
[321238113,1712009439955,-500.0,0.00054794,120]
[321238114,1712009439964,-500.0,0.00054794,120]
[321238115,1712009439973,-500.0,0.00054794,120]
[321238116,1712009439983,-500.0,0.00054794,120]
[321238117,1712009439992,-500.0,0.00054794,120]
[321238118,1712009440002,-500.0,0.00054794,120]
[321238119,1712009440011,-888.0,0.00054794,120]
[321238120,1712009440020,-500.0,0.00054794,120]
[321238121,1712009440029,-500.0,0.00054794,7]
[321238122,1712009440039,-500.0,0.00054794,120]
[321238123,1712009440048,-500.0,0.00054794,120]